fUSD/lending_fUSD_20260419
["ID","MTS","AMOUNT","RATE_DAILY","PERIOD"]
[420836789,1776609046078,-152.0,0.0002589,5]
[420836790,1776609046088,-1529.01,0.00025895,2]
[420836791,1776609046098,-1156.85,0.00025925,2]
[420836792,1776609046107,-257.39191255,0.00025943,30]
[420836793,1776609046117,-400.0,0.0002597,2]
[420836794,1776609046126,-400.0,0.0002597,2]
[420836795,1776609046135,-231179.81431346,0.0002598,2]
[420836796,1776609046145,-387533.39270336,0.0002598,2]
[420836797,1776609046155,-160.0,0.00026,7]
[420836798,1776609046164,-784.87709373,0.00026,30]
[420836799,1776609046173,-257.39191255,0.00026241,60]
[420836800,1776609046182,-150.0,0.00026508,21]
[420836801,1776609046191,-300.0,0.00026539,60]
[420836802,1776609046200,-300.0,0.00026539,60]
[420836803,1776609046210,-156.0,0.00026539,60]
[420836804,1776609046219,-257.39191255,0.00026539,60]
[420836805,1776609046228,-477.01,0.00026581,60]
[420836806,1776609046237,-200.0,0.00026581,60]
[420836807,1776609046246,-296.0,0.00026581,60]
[420836808,1776609046256,-1200.0,0.00026644,7]
[420836809,1776609046265,-150.0,0.00026834,2]
[420836810,1776609046274,-716.82,0.00026851,7]
[420836811,1776609046283,-172.23,0.00026895,7]
[420836812,1776609046293,-150.0,0.00026977,30]
[420836813,1776609046303,-150.0,0.00027,2]
[420836814,1776609046312,-353.87,0.00027,7]
[420836815,1776609046323,-150.0,0.00027067,2]
[420836816,1776609046332,-177.0,0.00027067,2]
[420836817,1776609046341,-170.0,0.00027068,10]
[420836818,1776609046351,-157.18,0.00027148,7]
[420836819,1776609046360,-159.04,0.00027148,7]
[420836820,1776609046369,-159.04,0.00027148,7]
[420836821,1776609046379,-217.53,0.00027228,7]
[420836822,1776609046389,-176.93363013,0.000273,30]
[420836823,1776609046398,-176.93363012,0.000273,30]
[420836824,1776609046407,-63080.14,0.000273,7]
[420836825,1776609046417,-500.0,0.00027397,2]
[420836830,1776609046775,-160.93330972,0.00027397,2]
[420836831,1776609046785,-320.46323871,0.00027397,2]
[420836832,1776609046795,-283.46300779,0.00027397,2]
[420836833,1776609046805,-300.0,0.00027397,2]
[420836834,1776609046814,-1000.0,0.00027397,20]
[420836835,1776609046824,-684.403113,0.00027397,2]
[420836836,1776609046833,-45396.16,0.00027397,10]
[420836837,1776609046842,-684.403113,0.00027397,2]
[420836838,1776609046852,-3728.30854138,0.00027546,2]
[420836839,1776609046861,-695.31,0.00027657,7]
[420836840,1776609046870,-537.32436905,0.00027682,2]
[420836841,1776609046880,-5700.96731297,0.00027682,2]
[420836842,1776609046889,-684.403113,0.000277,7]
[420836843,1776609046899,-684.403113,0.000277,7]
[420836844,1776609046909,-409.71961887,0.0002774,21]
[420836845,1776609046918,-1200.0,0.0002774,21]
[420836846,1776609046927,-353.87,0.000278,7]
[420836847,1776609046937,-302.10204081,0.00027803,2]
[420836848,1776609046948,-150.0,0.00027834,2]
[420836849,1776609046957,-63080.14,0.000279,7]
[420836850,1776609046967,-55424.0,0.000279,2]
[420836851,1776609046976,-300.0,0.00027999,10]
[420836852,1776609046986,-2584.0,0.00028,10]
[420836853,1776609046995,-155.92228758,0.00028,60]
[420836854,1776609047004,-320.0,0.00028,2]
[420836855,1776609047014,-1512.216702,0.00028,2]
[420836856,1776609047024,-66103.0,0.00028,2]
[420836857,1776609047034,-14543.4968149,0.00028066,2]
[420836858,1776609047044,-2226.4020252,0.00028066,2]
[420836859,1776609047054,-151.0,0.00028066,7]
[420836860,1776609047064,-151.0,0.00028066,7]
[420836861,1776609047073,-151.0,0.00028066,7]
[420836862,1776609047083,-914.15,0.000281,14]
[420836863,1776609047092,-150.0,0.00028369,30]
[420836864,1776609047102,-305.79,0.000284,14]
[420836865,1776609047111,-227.14,0.000284,14]
[420836866,1776609047120,-673.81,0.00028462,7]
[420836867,1776609047130,-5060.0,0.00028463,7]
[420836868,1776609047140,-5530.0,0.000285,3]
[420836869,1776609047149,-1500.0,0.000285,2]
[420836870,1776609047159,-2000.0,0.000286,2]
[420836871,1776609047169,-5337.25118,0.00028608,30]
[420836872,1776609047178,-63080.14,0.000287,7]
[420836873,1776609047189,-204.169656,0.000287,7]
[420836874,1776609047198,-3245.0927734,0.00028773,2]
[420836875,1776609047208,-496.7774404,0.00028773,2]
[420836876,1776609047217,-477.01,0.00028774,60]
[420836877,1776609047227,-235.77,0.000288,2]
[420836878,1776609047236,-446.0,0.000288,2]
[420836879,1776609047245,-2463.82,0.000288,2]
[420836880,1776609047255,-870.44,0.000288,2]
[420836881,1776609047264,-640.09,0.000288,2]
[420836882,1776609047274,-207.0,0.0002882,30]
[420836883,1776609047283,-250.0,0.00028828,12]
[420836884,1776609047292,-150.0,0.00028834,2]
[420836885,1776609047302,-260.0,0.00028855,12]
[420836886,1776609047311,-173.0,0.00028997,14]
[420836887,1776609047320,-1822.91,0.00029,14]
[420836888,1776609047330,-648.28,0.00029,14]
[420836889,1776609047339,-1500.0,0.00029,2]
[420836890,1776609047349,-797.55,0.000291,7]
[420836891,1776609047358,-5530.0,0.000292,5]
[420836892,1776609047368,-152.0,0.00029271,7]
[420836893,1776609047377,-152.0,0.00029271,7]
[420836894,1776609047387,-152.0,0.00029271,7]
[420836895,1776609047396,-152.0,0.0002928,30]
[420836896,1776609047406,-152.0,0.0002928,30]
[420836897,1776609047416,-152.0,0.0002928,7]
[420836898,1776609047426,-152.0,0.0002928,7]
[420836899,1776609047435,-152.0,0.00029289,30]
[420836900,1776609047445,-152.0,0.00029289,30]
[420836901,1776609047455,-152.0,0.00029289,7]
[420836902,1776609047464,-152.0,0.00029298,30]
[420836903,1776609047474,-200.0,0.00029307,2]
[420836904,1776609047484,-200.0,0.00029308,2]
[420836905,1776609047495,-200.0,0.00029308,2]
[420836906,1776609047505,-200.0,0.00029308,2]
[420836907,1776609047514,-200.0,0.00029309,2]
[420836908,1776609047524,-200.0,0.00029309,2]
[420836909,1776609047534,-200.0,0.00029311,2]
[420836910,1776609047543,-200.0,0.0002932,2]
[420836911,1776609047553,-200.0,0.00029323,2]
[420836912,1776609047562,-200.0,0.00029334,2]
[420836913,1776609047572,-507.16,0.00029376,60]
[420836914,1776609047581,-1200.0,0.00029384,21]
[420836915,1776609047590,-63080.14,0.000295,7]
[420836916,1776609047599,-1500.0,0.000295,2]
[420836917,1776609047608,-5700.96731297,0.000297,2]
[420836918,1776609047619,-14489.50299421,0.000297,2]
[420836919,1776609047628,-400.0,0.0002977,2]
[420836920,1776609047638,-400.0,0.0002977,2]
[420836921,1776609047647,-7936.0,0.00029781,2]
[420836922,1776609047657,-1230.0,0.00029781,2]
[420836923,1776609047666,-150.0,0.00029799,2]
[420836924,1776609047676,-233407.89164672,0.000298,2]
[420836925,1776609047685,-286502.95722734,0.000298,2]
[420836926,1776609047695,-865288.99561457,0.000298,2]
[420836927,1776609047704,-343912.60834276,0.000298,2]
[420836928,1776609047714,-852788.45704421,0.000298,2]
[420836929,1776609047723,-1032280.91198347,0.000298,2]
[420836930,1776609047733,-124207.10272864,0.000298,2]
[420836931,1776609047994,152.0,0.00015672,30]
[420836932,1776609048231,-271.28649999,0.00011539,2]
[420836933,1776609048241,-1163.5,0.00014134,2]
[420836934,1776609048250,-152.0,0.00015667,7]
[420836935,1776609048260,-221.66,0.00022126,2]
[420836936,1776609048269,-684.403113,0.00027397,2]
[420836937,1776609048278,-684.403113,0.000277,7]
[420836938,1776609048287,-20554.53588953,0.000298,2]
[420836939,1776609048442,1800.0,0.00032877,120]
[420836940,1776609049078,-3779.0,0.00014492,2]
[420836941,1776609049088,-773.554,0.00017492,2]
[420836942,1776609049097,-512.67040773,0.0002489,2]
[420836943,1776609049107,-220.37605773,0.00025563,2]
[420836944,1776609049116,-151.0,0.00025563,2]
[420836945,1776609049125,-684.403113,0.00027397,2]
[420836946,1776609049134,-684.403113,0.000277,7]
[420836947,1776609049143,-185.14,0.00028265,2]
[420836948,1776609049152,-286.43600954,0.000297,5]
[420836949,1776609049162,-512.67040773,0.0002979,2]
[420836950,1776609049172,-512.67040773,0.0002979,2]
[420836951,1776609049180,-2213.97304984,0.000298,2]
[420836952,1776609049337,-1141.6,0.000298,2]
[420836953,1776609049348,-553.523,0.000298,2]
[420836954,1776609049363,-4320.29409506,0.000298,2]
[420836955,1776609049374,-3373.49917427,0.000298,2]
[420836956,1776609049385,-1452.01192522,0.000298,2]
[420836957,1776609049397,-1684.64180015,0.000298,2]
[420836958,1776609049408,-1025.25194819,0.000298,2]
[420836959,1776609049438,-317942.67908119,0.000298,2]
[420836960,1776609049449,-120080.0000001,0.000298,2]
[420836961,1776609055128,1628.167209,0.00028126,120]
[420836962,1776609071127,212.279324,0.00031676,120]
[420836963,1776609079146,1000.0,0.00032877,120]
[420836964,1776609098097,1000.0,0.00032877,120]
[420836965,1776609105992,1000.0,0.00032877,120]
[420836966,1776609106343,300.0,0.00027,120]
[420836967,1776609109274,324.538086,0.00031458,120]
[420836968,1776609111443,1000.0,0.00032877,120]
[420836969,1776609121108,1000.0,0.00032877,120]
[420836970,1776609142549,1000.0,0.00032877,120]
[420836971,1776609146869,469.0,0.00032876,120]
[420836972,1776609149146,1000.0,0.00032877,120]
[420836973,1776609155587,1000.0,0.00032877,120]
[420836974,1776609162301,1000.0,0.00032877,120]
[420836975,1776609176999,2538.4,0.00032,120]
[420836976,1776609178986,1000.0,0.00032877,120]
[420836977,1776609188023,5575.244449,7.945e-05,2]
[420836978,1776609201498,1000.0,0.00032877,120]
[420836979,1776609208047,1000.0,0.00032877,120]
[420836980,1776609213782,4500.0,0.00032877,120]
[420836981,1776609214395,1000.0,0.00032877,120]
[420836982,1776609215654,1157.7,0.00032877,120]
[420836983,1776609222695,1000.0,0.00032877,120]
[420836984,1776609230677,599.28594614,0.00032877,120]
[420836985,1776609240251,1000.0,0.00032877,120]
[420836986,1776609245927,1000.0,0.00032877,120]
[420836987,1776609268846,160.0,0.000328,120]
[420836988,1776609269874,1000.0,0.00032877,120]
[420836989,1776609275567,1000.0,0.00032877,120]
[420836990,1776609282320,1000.0,0.00032877,120]
[420836991,1776609306534,163.0,0.00030407,120]
[420836992,1776609306696,163.0,0.00031928,120]
[420836993,1776609309123,1000.0,0.00032877,120]
[420836994,1776609310458,5000.0,0.000328,120]
[420836995,1776609333276,14813.0,0.000328,120]
[420836996,1776609336065,937.454455,0.00030645,120]
[420836997,1776609353686,1006.69,0.0003,120]
[420836998,1776609364684,2000.0,0.000297,120]
[420836999,1776609377479,1882.98054589,0.00032876,120]
[420837000,1776609444463,1600.0,0.00026546,120]
[420837001,1776609444662,1600.0,0.00029201,120]
[420837002,1776609444859,1600.0,0.00031855,120]
[420837003,1776609477573,383.94039,0.000294,120]
[420837004,1776609504864,1000.3,0.00032877,120]
[420837005,1776609517581,363.0,0.0003287,120]
[420837006,1776609520408,201.0,0.0003287,120]
[420837007,1776609523245,2000.0,0.000297,120]
[420837008,1776609524865,600.0,0.00030411,120]
[420837009,1776609536822,625.45,0.00027899,120]
[420837010,1776609537033,625.45,0.00029499,120]
[420837011,1776609537259,625.45,0.00029799,120]
[420837012,1776609537477,625.45,0.00029799,120]
[420837013,1776609537693,625.45,0.00029799,120]
[420837014,1776609538698,625.45,0.00029799,120]
[420837015,1776609541213,625.45,0.00029799,120]
[420837016,1776609541255,625.45,0.00029799,120]
[420837017,1776609541310,625.45,0.00029799,120]
[420837018,1776609541364,625.45,0.00029799,120]
[420837019,1776609541407,625.45,0.00029799,120]
[420837020,1776609541468,625.45,0.00029799,120]
[420837021,1776609541511,625.45,0.00029799,120]
[420837022,1776609541565,625.45,0.00029799,120]
[420837023,1776609541677,625.45,0.00029799,120]
[420837024,1776609541728,625.45,0.00029799,120]
[420837025,1776609541792,625.47208805,0.00029799,120]
[420837026,1776609615103,5842.0,0.000298,120]
[420837027,1776609615189,5842.0,0.000298,120]
[420837028,1776609615320,5842.0,0.000298,120]
[420837029,1776609615557,5842.0,0.000298,120]
[420837030,1776609615837,5842.0,0.000298,120]
[420837031,1776609616105,5842.0,0.000298,120]
[420837032,1776609616382,5842.0,0.000298,120]
[420837033,1776609619148,5842.0,0.000298,120]
[420837034,1776609619199,5842.0,0.000298,120]
[420837035,1776609619340,5849.269,0.000298,120]
[420837036,1776609621554,500.0,0.000298,120]
[420837037,1776609621844,500.0,0.000298,120]
[420837038,1776609622113,500.0,0.000298,120]
[420837039,1776609622410,500.0,0.000298,120]
[420837040,1776609622693,500.0,0.000298,120]
[420837041,1776609622986,500.0,0.000298,120]
[420837042,1776609623273,500.0,0.000298,120]
[420837043,1776609623573,500.0,0.000298,120]
[420837044,1776609623832,617.541,0.000298,120]
[420837045,1776609665957,191.970195,0.00029204,120]
[420837046,1776609683884,2000.0,0.000272,120]
[420837047,1776609713807,5000.0,0.00032877,120]
[420837048,1776609762635,2291.176,0.00032877,120]
[420837049,1776609778177,1013.84275776,0.0003287,120]
[420837050,1776609802089,500.0,0.00025071,120]
[420837051,1776609802247,500.0,0.00026573,120]
[420837052,1776609802671,500.0,0.00027507,120]
[420837053,1776609803191,500.0,0.00028441,120]
[420837054,1776609803701,500.0,0.00029375,120]
[420837055,1776609804343,500.0,0.00030309,120]
[420837056,1776609805019,500.0,0.00031243,120]
[420837057,1776609805802,500.0,0.00032177,120]
[420837058,1776609819769,4000.0,0.00032877,120]
[420837059,1776609828664,2015.887,0.00032877,120]
[420837060,1776609840614,2000.0,0.00027184,120]
[420837061,1776609901129,180.771935,0.00029105,120]
[420837062,1776609911152,276082.0,0.00032874,120]
[420837063,1776609933890,967.08,0.00032877,120]
[420837064,1776609946835,944.0,0.00032876,120]
[420837065,1776609949147,483.54,0.000165,30]
[420837066,1776609964244,483.54,0.00032877,120]
[420837067,1776609973515,255.0,0.00028698,120]
[420837069,1776610142580,930.17,0.00032877,120]
[420837085,1776610233001,-260.0,9.863e-05,2]
[420837086,1776610233011,-150.82,0.00010073,2]
[420837087,1776610233020,-171.67995488,0.00010238,2]
[420837088,1776610233031,-3220.6525,0.00010289,2]
[420837089,1776610233040,-180.82,0.00010338,2]
[420837090,1776610233049,-1233.06144251,0.00010944,2]
[420837091,1776610233061,-255.51004428,0.00010944,2]
[420837092,1776610233072,-1231.77984621,0.00010944,2]
[420837093,1776610233081,-1200.0,0.00010998,2]
[420837094,1776610233090,-300.0,0.00010999,2]
[420837095,1776610233099,-300.0,0.00010999,2]
[420837096,1776610233109,-5443.6390705,0.00011,2]
[420837097,1776610233121,-921.2409295,0.00011,2]
[420837098,1776610233130,-1591.27,0.00011,2]
[420837099,1776610233139,-1948.85,0.00011,2]
[420837100,1776610233149,-1000.0,0.0001144,2]
[420837101,1776610233158,-420.0,0.00012087,2]
[420837102,1776610233167,-420.0,0.00012087,2]
[420837103,1776610233176,-2052.3990705,0.000121,2]
[420837104,1776610233187,-1903.48681178,0.000121,2]
[420837105,1776610233230,-427.65,0.000121,2]
[420837106,1776610233242,-400.0,0.000121,2]
[420837107,1776610233492,-1581.34411772,0.000121,2]
[420837108,1776610233501,-1591.27,0.000121,2]
[420837109,1776610233510,-1948.85,0.000121,2]
[420837110,1776610233520,-158.0,0.00013282,2]
[420837111,1776610233529,-584.0,0.00013282,2]
[420837112,1776610233538,-160.0,0.00013496,2]
[420837113,1776610233547,-625.45,0.00013698,2]
[420837114,1776610233557,-625.45,0.00013698,2]
[420837115,1776610233567,-265.73150065,0.00013698,2]
[420837116,1776610233576,-155.7716513,0.00013951,2]
[420837117,1776610233589,-155.7716513,0.00014193,2]
[420837118,1776610233599,-155.7716513,0.00014434,2]
[420837119,1776610233608,-155.7716513,0.00014676,2]
[420837120,1776610233618,-155.7716513,0.00014918,2]
[420837121,1776610233627,-155.7716513,0.00015159,2]
[420837122,1776610233637,-155.7716513,0.00015401,2]
[420837123,1776610233646,-150.0,0.00015575,2]
[420837124,1776610233656,-155.7716513,0.00015642,2]
[420837125,1776610233665,-155.7716513,0.00015884,2]
[420837126,1776610233674,-155.7716513,0.00016125,2]
[420837127,1776610233683,-300.0,0.00016307,2]
[420837128,1776610233693,-622.0,0.00016308,2]
[420837129,1776610233702,-1348.0,0.00016308,2]
[420837130,1776610233711,-1047.0,0.00016308,2]
[420837131,1776610233721,-3528.0,0.00016308,2]
[420837132,1776610233731,-3779.0,0.00016308,2]
[420837133,1776610233740,-300.0,0.00016357,2]
[420837134,1776610233750,-155.7716513,0.00016367,2]
[420837135,1776610233759,-155.7716513,0.00016608,2]
[420837136,1776610233769,-155.7716513,0.0001685,2]
[420837137,1776610233779,-155.7716513,0.00017091,2]
[420837138,1776610233788,-155.7716513,0.00017333,2]
[420837139,1776610233797,-155.7716513,0.00017575,2]
[420837140,1776610233808,-183.28,0.00017693,2]
[420837141,1776610233818,-155.7716514,0.00017816,2]
[420837142,1776610233828,-2000.0,0.00018031,2]
[420837143,1776610233837,-625.45,0.00018034,2]
[420837144,1776610233847,-1116.0,0.00018685,2]
[420837145,1776610233856,-3779.0,0.00019308,2]
[420837146,1776610233866,-646.65982735,0.00019876,2]
[420837147,1776610233875,-1328.27659266,0.00019876,2]
[420837148,1776610233885,-200.0,0.00019876,2]
[420837149,1776610233895,-151.0,0.00019876,2]
[420837150,1776610233904,-151.0,0.00019876,2]
[420837151,1776610233914,-743.50770149,0.00019876,2]
[420837152,1776610233923,-1000.0,0.00019876,2]
[420837153,1776610233933,-1000.0,0.00019876,2]
[420837154,1776610233943,-1000.0,0.00019876,2]
[420837155,1776610233952,-1000.0,0.00019876,2]
[420837156,1776610233963,-1000.0,0.00019876,2]
[420837157,1776610233972,-1000.0,0.00019876,2]
[420837158,1776610233982,-1000.0,0.00019876,2]
[420837159,1776610233996,-500.0,0.00019876,2]
[420837160,1776610234007,-500.0,0.00019876,2]
[420837161,1776610234016,-500.0,0.00019876,2]
[420837162,1776610234027,-500.0,0.00019876,2]
[420837163,1776610234036,-500.0,0.00019876,2]
[420837164,1776610234046,-1000.0,0.00019876,2]
[420837165,1776610234056,-500.0,0.00019876,2]
[420837166,1776610234066,-1000.0,0.00019876,2]
[420837167,1776610234076,-500.0,0.00019876,2]
[420837168,1776610234086,-1000.0,0.00019876,2]
[420837169,1776610234096,-500.0,0.00019876,2]
[420837170,1776610234105,-1000.0,0.00019876,2]
[420837171,1776610234115,-500.0,0.00019876,2]
[420837172,1776610234125,-1000.0,0.00019876,2]
[420837173,1776610234134,-197.79686157,0.00019876,2]
[420837174,1776610234146,-10009.6001,0.000199,2]
[420837175,1776610234156,-154.0,0.0002,2]
[420837176,1776610234167,-334.0,0.0002,2]
[420837177,1776610234177,-632.0,0.0002,2]
[420837178,1776610234186,-1722.0,0.0002,2]
[420837179,1776610234196,-159.0,0.0002,2]
[420837180,1776610234207,-1159.0,0.0002,2]
[420837181,1776610234217,-176.0,0.0002,2]
[420837182,1776610234226,-172.0,0.0002,2]
[420837183,1776610234236,-2827.6,0.0002,30]
[420837184,1776610234246,-500.0,0.00020078,2]
[420837185,1776610234255,-11690.18,0.00020238,2]
[420837186,1776610234265,-574.44614397,0.00020424,2]
[420837187,1776610234274,-500.0,0.000208,2]
[420837188,1776610234283,-500.0,0.000208,2]
[420837189,1776610234293,-500.0,0.000208,2]
[420837190,1776610234302,-480.97380067,0.000208,2]
[420837191,1776610234312,-500.0,0.000208,2]
[420837192,1776610234321,-500.0,0.000208,2]
[420837193,1776610234334,-500.0,0.0002096,2]
[420837194,1776610234343,-569.5582,0.00020986,2]
[420837195,1776610234354,-154.0,0.00021,2]
[420837196,1776610234363,-334.0,0.00021,2]
[420837197,1776610234372,-632.0,0.00021,2]
[420837198,1776610234382,-1722.0,0.00021,2]
[420837199,1776610234395,-159.0,0.00021,2]
[420837200,1776610234405,-1159.0,0.00021,2]
[420837201,1776610234415,-176.0,0.00021,2]
[420837202,1776610234424,-172.0,0.00021,2]
[420837203,1776610234435,-500.0,0.00021064,2]
[420837204,1776610234445,-3929.48,0.0002108,2]
[420837205,1776610234456,-150.0,0.00021092,2]
[420837206,1776610234465,-1600.0,0.00021237,2]
[420837207,1776610234475,-2328.65,0.00021237,2]
[420837208,1776610234486,-260.0,0.00021309,3]
[420837209,1776610234495,-4981.95,0.00021407,2]
[420837210,1776610234505,-150.0,0.00021644,2]
[420837211,1776610234515,-268.09039791,0.00021644,2]
[420837212,1776610234524,-150.0,0.00021644,2]
[420837213,1776610234534,-150.0,0.00021644,2]
[420837214,1776610234544,-150.0,0.00021644,2]
[420837215,1776610234553,-259.66094525,0.00021644,2]
[420837216,1776610234563,-500.0,0.00021644,2]
[420837217,1776610234573,-500.0,0.00021644,2]
[420837218,1776610234583,-500.0,0.00021644,2]
[420837219,1776610234592,-347.14890729,0.00021644,2]
[420837220,1776610234602,-166.94,0.00021874,2]
[420837221,1776610234612,-1200.0,0.00021918,2]
[420837222,1776610234622,-1200.0,0.00021918,2]
[420837223,1776610234632,-1200.0,0.00021918,2]
[420837224,1776610234642,-1200.0,0.00021918,2]
[420837225,1776610234652,-1200.0,0.00021918,2]
[420837226,1776610234662,-1200.0,0.00021918,2]
[420837227,1776610234672,-1200.0,0.00021918,2]
[420837228,1776610234681,-1200.0,0.00021918,2]
[420837229,1776610234691,-1200.0,0.00021918,2]
[420837230,1776610234701,-154.0,0.00022,2]
[420837231,1776610234712,-334.0,0.00022,2]
[420837232,1776610234722,-632.0,0.00022,2]
[420837233,1776610234732,-1722.0,0.00022,2]
[420837234,1776610234741,-1159.0,0.00022,2]
[420837235,1776610234751,-176.0,0.00022,2]
[420837236,1776610234761,-172.0,0.00022,2]
[420837237,1776610234771,-1597.82,0.00022,30]
[420837238,1776610234781,-579.89767228,0.00022103,7]
[420837239,1776610234791,-1446.02,0.00022189,30]
[420837240,1776610234801,-10867.38,0.00022395,2]
[420837241,1776610234811,-500.0,0.00022945,2]
[420837242,1776610234820,-334.0,0.00023,2]
[420837243,1776610234831,-632.0,0.00023,2]
[420837244,1776610234852,-1722.0,0.00023,2]
[420837245,1776610234863,-1159.0,0.00023,2]
[420837246,1776610234872,-176.0,0.00023,2]
[420837247,1776610234882,-172.0,0.00023,2]
[420837248,1776610234892,-2000.0,0.00023535,2]
[420837249,1776610234902,-500.0,0.00023633,2]
[420837250,1776610234912,-30582.28707241,0.000238,2]
[420837251,1776610234921,-153.730159,0.00023843,6]
[420837252,1776610234931,-1600.0,0.00023892,2]
[420837253,1776610234941,-6364.88,0.000239,2]
[420837254,1776610234951,-1591.27,0.000239,2]
[420837255,1776610234961,-1948.85,0.000239,2]
[420837256,1776610234971,-2440.52,0.00023943,2]
[420837257,1776610234981,-334.0,0.00024,2]
[420837258,1776610234990,-632.0,0.00024,2]
[420837259,1776610235000,-1722.0,0.00024,2]
[420837260,1776610235011,-1159.0,0.00024,2]
[420837261,1776610235021,-176.0,0.00024,2]
[420837262,1776610235030,-172.0,0.00024,2]
[420837263,1776610235041,-2747.27375689,0.00024153,2]
[420837264,1776610235051,-500.0,0.00024342,2]
[420837265,1776610235061,-783.09,0.00024379,60]
[420837266,1776610235071,-1000.0,0.00024658,2]
[420837267,1776610235080,-625.45,0.00024897,2]
[420837268,1776610235090,-625.45,0.00024899,2]
[420837269,1776610235100,-500.0,0.00024932,2]
[420837270,1776610235110,-625.45,0.00024999,2]
[420837271,1776610235120,-346.0,0.00025,2]
[420837272,1776610235130,-634.0,0.00025,2]
[420837273,1776610235140,-1730.0,0.00025,2]
[420837274,1776610235149,-1177.0,0.00025,2]
[420837275,1776610235158,-6364.88,0.00025,2]
[420837276,1776610235168,-184.0,0.00025,2]
[420837277,1776610235177,-176.57351985,0.00025,2]
[420837278,1776610235187,-1591.27,0.00025,2]
[420837279,1776610235196,-1948.85,0.00025,2]
[420837280,1776610235206,-500.0,0.00025073,2]
[420837281,1776610235216,-166.94,0.00025484,2]
[420837282,1776610235226,-2000.0,0.000255,2]
[420837283,1776610235236,-625.45,0.00025562,2]
[420837284,1776610235246,-2328.65,0.00025675,2]
[420837285,1776610235256,-385.66877703,0.00025675,2]
[420837286,1776610235265,-430.82,0.0002568,30]
[420837287,1776610235275,-739.5,0.00025683,30]
[420837288,1776610235285,-13006.85033416,0.00025744,2]
[420837289,1776610235303,-533.1592,0.00025744,2]
[420837290,1776610235317,-533.19435917,0.00025744,2]
[420837291,1776610235438,-4809.36090785,0.00025744,2]
[420837297,1776610238531,-908.09371088,0.00022308,2]
[420837298,1776610238547,-2870.90628912,0.00022308,2]
[420837299,1776610238559,-1803.0,0.00025308,2]
[420837300,1776610238569,-3681.55546188,0.00025744,2]
[420837301,1776610238584,-8018.16680929,0.00025744,2]
[420837302,1776610238594,-500.0,0.00025825,2]
[420837303,1776610238604,-212.279324,0.00026338,14]
[420837304,1776610238615,-214.40161586,0.00026369,4]
[420837305,1776610238626,-183.28,0.00026539,2]
[420837306,1776610238636,-288.0,0.00026572,60]
[420837307,1776610238647,-500.0,0.00026599,2]
[420837308,1776610238656,-150.0,0.00026803,7]
[420837309,1776610238667,-150.0,0.00026803,4]
[420837310,1776610238677,-150.0,0.00026803,4]
[420837311,1776610238687,-150.0,0.00026803,4]
[420837312,1776610238696,-150.0,0.00026803,4]
[420837313,1776610238707,-150.0,0.00026803,4]